bitfinex-derivatives/quotes_SOLF0:USTF0_20260203
["timestamp","ask_amount","ask_price","bid_price","bid_amount"]
[1770130019607,22.54321548,102.12,102.01,528.4497]
[1770130019812,22.47930573,102.1,102.01,391.08]
[1770130020612,22.47930573,102.1,101.98,137.4114]
[1770130020816,159.74400573,102.09,101.98,391.06]
[1770130021018,22.47930573,102.07,101.98,391.06]
[1770130021320,22.47930573,102.07,101.96,391.04]
[1770130021518,168.60050573,102.07,101.96,391.04]
[1770130021822,22.48842155,102.06,101.96,391.04]
[1770130022414,22.48842155,102.04,101.96,391.04]
[1770130022722,22.48842155,102.04,101.93,528.5187]
[1770130022917,159.76632155,102.08,101.95,137.4469]
[1770130023120,22.48842155,102.11,102.01,137.3717]
[1770130023319,151.4801,102.14,102.03,8.829]
[1770130023517,302.34552155,102.14,102.04,391.06]
[1770130023820,364.34552155,102.14,102.04,391.06]
[1770130024115,137.2241,102.12,102.04,391.06]
[1770130024522,159.61852202,102.11,101.99,137.3987]
[1770130024722,168.44142202,102.11,102.0,399.8916]
[1770130025322,137.256,102.1,102.0,391.06]
[1770130025517,159.67622202,102.07,101.93,137.4726]
[1770130025724,159.67622202,102.07,101.95,137.4498]
[1770130026026,159.67622202,102.07,101.96,8.835]
[1770130026526,137.3047,102.06,101.96,8.835]
[1770130027024,8.8277,102.05,101.96,8.835]
[1770130027223,8.8277,102.05,101.94,450.9241]
[1770130027224,8.8277,102.05,101.95,137.4526]
[1770130027419,146.1457,102.05,101.94,450.9241]
[1770130027629,143.26,102.1,101.99,137.394]
[1770130027829,22.36253401,102.11,102.0,528.4239]
[1770130028035,22.36253401,102.11,102.01,137.3692]
[1770130028225,22.36253401,102.11,102.0,391.04]
[1770130028430,22.36253401,102.14,102.04,137.3292]
[1770130028734,22.36253401,102.15,102.05,8.827]
[1770130028928,159.54743401,102.15,102.05,8.827]
[1770130029129,22.36253401,102.13,102.04,297.04]
[1770130029326,31.18423401,102.12,102.04,297.04]
[1770130029532,22.36253401,102.12,102.04,297.04]
[1770130029730,166.14476901,102.15,102.04,434.3701]
[1770130030029,22.32476901,102.18,102.07,137.2835]
[1770130030331,22.32476901,102.15,102.06,391.04]
[1770130030926,22.32476901,102.17,102.07,528.329]
[1770130031632,31.14206901,102.17,102.07,391.02]
[1770130031828,22.33497621,102.16,102.07,391.02]
[1770130032326,22.33497621,102.16,102.08,137.2774]
[1770130032527,162.35247232,102.21,102.07,528.3105]
[1770130032528,22.33497621,102.23,102.13,137.2087]
[1770130033028,22.33497621,102.2,102.08,137.2667]
[1770130033234,22.33497621,102.19,102.08,137.2667]
[1770130033628,22.33497621,102.19,102.07,391.02]
[1770130033833,22.33365218,102.17,102.07,391.02]
[1770130034143,22.33365218,102.17,102.06,137.3041]
[1770130034636,143.84,102.18,102.08,137.2747]
[1770130034637,166.17365218,102.18,102.08,137.2747]
[1770130035038,166.17365218,102.18,102.09,8.8239]
[1770130035238,22.33365218,102.18,102.1,137.2459]
[1770130035841,22.33365218,102.18,102.08,137.2747]
[1770130036137,22.34139604,102.17,102.08,528.1947]
[1770130036338,22.34139604,102.17,102.08,399.7442]
[1770130036531,22.34139604,102.21,102.11,137.2369]
[1770130036735,22.34139604,102.21,102.1,137.2465]
[1770130037243,22.34139604,102.21,102.06,137.2927]
[1770130037244,22.34139604,102.17,102.06,137.2927]
[1770130037538,166.50139604,102.17,102.07,137.2892]
[1770130037736,22.34123952,102.16,102.08,137.2768]
[1770130037938,22.34123952,102.19,102.11,137.2365]
[1770130038143,22.34123952,102.19,102.1,146.0729]
[1770130038437,22.34123952,102.22,102.14,137.1967]
[1770130038643,22.34123952,102.22,102.15,137.1823]
[1770130039036,22.34123952,102.21,102.1,137.2384]
[1770130039232,22.34123952,102.2,102.11,137.237]
[1770130039644,22.34123952,102.2,102.09,528.1129]
[1770130039841,22.34354968,102.17,102.06,137.2925]
[1770130040140,22.34354968,102.17,102.06,528.1525]
[1770130040337,22.34396875,102.16,102.07,8.8256]
[1770130040537,22.34396875,102.16,102.06,390.86]
[1770130040538,22.34396875,102.16,102.05,390.84]
[1770130041037,22.34396875,102.14,102.05,390.84]
[1770130041337,22.34396875,102.14,102.03,137.3394]
[1770130041538,22.34396875,102.13,102.03,528.1643]
[1770130041737,22.34396875,102.13,102.04,137.3284]
[1770130041949,22.29806147,102.16,102.06,137.3038]
[1770130042239,22.29806147,102.19,102.09,137.2639]
[1770130042440,22.29806147,102.19,102.08,137.2714]
[1770130042640,159.44236147,102.18,102.06,137.3038]
[1770130043145,22.29806147,102.18,102.08,8.8247]
[1770130043445,8.8191,102.15,102.05,8.8272]
[1770130043648,22.29806147,102.16,102.05,528.134]
[1770130043944,22.29806147,102.16,102.05,528.1372]
[1770130044160,22.29806147,102.16,102.06,8.8265]
[1770130044350,22.27837655,102.19,102.09,137.2622]
[1770130044647,167.55837655,102.22,102.13,8.8205]
[1770130044842,22.27837655,102.21,102.1,528.0643]
[1770130045235,22.27837655,102.21,102.12,8.8213]
[1770130045236,31.09247655,102.21,102.12,8.8213]
[1770130045448,22.27837655,102.2,102.1,528.0643]
[1770130046048,22.27837655,102.2,102.11,8.8222]
[1770130046246,22.29986695,102.23,102.13,137.2091]
[1770130046747,22.29986695,102.23,102.14,8.8196]
[1770130047653,22.29986695,102.23,102.15,137.1825]
[1770130047865,22.15777149,102.26,102.16,137.1661]
[1770130048245,22.15777149,102.24,102.15,390.78]
[1770130048446,22.15777149,102.23,102.15,390.78]
[1770130048838,22.15777149,102.23,102.11,137.2285]
[1770130048839,22.15777149,102.21,102.11,137.2285]
[1770130049754,22.15777149,102.21,102.1,527.999]
[1770130050046,22.15755789,102.2,102.1,527.999]
[1770130050251,22.15755789,102.19,102.1,390.76]
[1770130050443,30.97305789,102.19,102.1,390.76]
[1770130050643,84.15755789,102.18,102.1,390.76]
[1770130050842,84.15755789,102.18,102.07,137.2802]
[1770130050843,22.15755789,102.14,102.06,8.8266]
[1770130051045,22.15755789,102.14,102.07,137.2908]
[1770130051241,22.15755789,102.17,102.07,137.2908]
[1770130051446,22.15755789,102.17,102.09,8.824]
[1770130052054,62.0,102.18,102.08,137.2742]
[1770130052750,70.8163,102.18,102.1,8.8232]
[1770130053153,30.96348507,102.18,102.1,8.8232]
[1770130054642,22.14718507,102.18,102.11,8.8223]
[1770130054841,22.14718507,102.18,102.09,137.2637]
[1770130054842,22.14718507,102.18,102.1,137.2473]
[1770130055050,22.1130238,102.2,102.1,137.2473]
[1770130055353,22.1130238,102.19,102.1,8.8226]
[1770130055748,22.1130238,102.19,102.11,8.822]
[1770130056746,165.84048665,102.18,102.09,390.72]
[1770130056950,22.11338409,102.17,102.07,137.2908]
[1770130057146,22.11338409,102.16,102.07,137.2908]
[1770130057342,22.11338409,102.15,102.06,390.72]
[1770130057551,22.11338409,102.13,102.04,137.32]
[1770130057944,22.11204851,102.11,102.02,137.3482]
[1770130058142,22.11204851,102.11,102.03,137.3447]
[1770130058347,159.32554851,102.13,102.02,528.0682]
[1770130058554,6.57570256,102.1,102.02,390.72]
[1770130058848,137.1972,102.14,102.02,390.72]
[1770130058849,28.68775107,102.14,102.05,137.3178]
[1770130059153,28.68775107,102.14,102.04,137.3313]
[1770130059749,159.32119817,102.12,102.03,390.72]
[1770130059946,165.89690073,102.12,102.03,390.72]
[1770130060151,22.09589817,102.12,102.04,137.3304]
[1770130060344,22.09589817,102.12,102.04,8.8277]
[1770130060753,22.09589817,102.12,102.03,390.72]
[1770130060949,22.09589817,102.11,102.02,274.7088]
[1770130061181,62.0,102.13,102.03,137.3448]
[1770130061353,28.67160073,102.14,102.04,137.326]
[1770130061549,22.09589817,102.14,102.06,8.8263]
[1770130061755,28.69908433,102.17,102.07,137.2882]
[1770130062256,22.12338177,102.16,102.07,137.2882]
[1770130062456,22.12338177,102.16,102.06,528.0594]
[1770130062651,28.69908433,102.15,102.06,390.76]
[1770130062845,22.12338177,102.13,102.03,137.3407]
[1770130063048,22.12338177,102.13,102.03,528.1207]
[1770130063458,159.34818177,102.12,102.03,390.78]
[1770130063755,22.12338177,102.12,102.03,528.1242]
[1770130063952,22.12338177,102.12,102.04,137.3306]
[1770130064152,22.12338177,102.12,102.03,528.1242]
[1770130064351,30.94488177,102.12,102.04,8.8277]
[1770130064551,159.34948177,102.12,102.03,390.78]
[1770130064855,22.10874974,102.11,102.01,528.1606]
[1770130065047,8.8235,102.1,102.01,528.1606]
[1770130065447,22.10874974,102.09,102.01,390.8]
[1770130065649,22.10874974,102.09,101.99,8.8322]
[1770130065650,28.68075354,102.07,101.99,8.8322]
[1770130066053,28.68075354,102.07,101.97,137.4144]
[1770130066355,8.8268,102.06,101.98,8.8334]
[1770130066552,22.10505098,102.05,101.97,137.4248]
[1770130066749,22.10505098,102.05,101.98,8.8334]
[1770130066954,22.10505098,102.05,101.98,146.2446]
[1770130067146,22.10505098,102.05,101.98,8.8334]
[1770130067355,167.02505098,102.08,101.99,8.8325]
[1770130067555,173.58075354,102.11,102.02,137.3551]
[1770130067758,22.00421715,102.14,102.05,137.315]
[1770130067953,22.00421715,102.14,102.07,8.8255]
[1770130068153,22.00421715,102.14,102.04,137.3305]
[1770130068452,22.00421715,102.14,102.06,137.3038]
[1770130068756,22.00421715,102.17,102.07,137.283]
[1770130068945,22.00421715,102.17,102.1,8.8229]
[1770130069148,22.00421715,102.2,102.11,137.2363]
[1770130069555,30.81901715,102.2,102.12,8.8213]
[1770130070260,30.82246505,102.19,102.09,528.1422]
[1770130070650,22.00676505,102.19,102.12,8.8213]
[1770130070853,22.00677163,102.21,102.12,137.2213]
[1770130071755,22.00112858,102.24,102.16,8.8178]
[1770130071955,22.00112858,102.24,102.17,137.156]
[1770130072157,22.00112858,102.26,102.17,137.156]
[1770130072551,22.00112858,102.25,102.15,528.0416]
[1770130072956,159.05102858,102.25,102.15,528.0416]
[1770130073251,30.81283995,102.24,102.14,137.1949]
[1770130073447,22.00113995,102.23,102.14,137.1949]
[1770130073652,30.81343995,102.23,102.15,8.8186]
[1770130073855,22.00113995,102.23,102.15,8.8186]
[1770130074261,22.00113995,102.23,102.13,528.0276]
[1770130074458,30.79958375,102.22,102.13,399.6402]
[1770130074762,21.98638375,102.21,102.13,390.82]
[1770130075256,21.98638375,102.21,102.13,528.03]
[1770130075857,21.98638375,102.21,102.13,390.82]
[1770130076258,21.97889875,102.2,102.09,137.253]
[1770130076454,21.97889875,102.19,102.09,137.253]
[1770130077159,30.79469875,102.19,102.1,8.8229]
[1770130077356,159.07039875,102.22,102.11,137.2325]
[1770130077561,221.07039875,102.22,102.11,527.9525]
[1770130077763,21.97889875,102.22,102.14,137.1957]
[1770130078561,21.97889875,102.22,102.13,137.2064]
[1770130078764,21.97889875,102.22,102.12,527.9426]
[1770130079065,30.79199875,102.22,102.13,146.0305]
[1770130079765,30.79199875,102.22,102.14,8.8194]
[1770130080464,21.97889875,102.22,102.15,8.8187]
[1770130080662,83.98689874,102.25,102.15,137.1826]
[1770130080864,21.98689874,102.24,102.15,390.68]
[1770130081058,21.98689874,102.27,102.18,137.1418]
[1770130081259,21.98689874,102.3,102.19,274.251]
[1770130081459,21.98689874,102.3,102.22,137.0885]
[1770130081760,21.98689874,102.3,102.21,137.1003]
[1770130082058,21.98689874,102.3,102.2,137.1125]
[1770130082264,21.98958839,102.29,102.19,527.8046]
[1770130082457,21.98958839,102.27,102.19,390.68]
[1770130082853,21.98958839,102.27,102.19,527.8091]
[1770130083060,21.98958839,102.27,102.19,390.68]
[1770130083258,159.02978839,102.26,102.15,137.1768]
[1770130083565,159.06768839,102.23,102.13,137.201]
[1770130083863,153.80063387,102.26,102.17,137.1555]
[1770130083864,22.02416941,102.26,102.17,137.1555]
[1770130084064,159.06196941,102.26,102.16,390.62]
[1770130084264,22.02416941,102.26,102.16,527.7887]
[1770130084460,38.78460328,102.29,102.19,274.2454]
[1770130084664,22.02416941,102.27,102.17,527.7555]
[1770130084960,22.02416941,102.25,102.15,137.1788]
[1770130085163,22.02416941,102.23,102.15,390.6]
[1770130085471,30.83626941,102.23,102.15,399.4188]
[1770130085669,22.02416941,102.23,102.15,390.6]
[1770130085870,298.42083387,102.26,102.16,137.1687]
[1770130085871,21.97373191,102.26,102.16,137.1687]
[1770130086369,21.97373191,102.26,102.17,137.1547]
[1770130086561,21.97373191,102.26,102.17,527.7147]
[1770130086760,21.97373191,102.26,102.17,137.1547]
[1770130086964,21.97373191,102.26,102.16,137.1687]
[1770130087570,8.8104,102.25,102.18,8.8162]
[1770130087767,30.77643708,102.25,102.15,137.1805]
[1770130087964,30.77643708,102.25,102.16,137.1696]
[1770130088473,30.77723708,102.24,102.15,8.8183]
[1770130088667,206.44,102.26,102.17,137.1554]
[1770130088871,21.96603708,102.24,102.15,390.54]
[1770130089265,21.96603708,102.22,102.12,137.212]
[1770130089468,21.96603708,102.22,102.13,137.2092]
[1770130089672,21.96603708,102.22,102.14,137.1969]
[1770130089874,21.96178653,102.25,102.17,137.1552]
[1770130090067,21.96178653,102.25,102.15,527.7234]
[1770130090269,21.96178653,102.22,102.12,137.2117]
[1770130090566,21.96178653,102.22,102.14,8.8189]
[1770130090982,21.96178653,102.21,102.12,390.52]
[1770130091373,21.96178653,102.21,102.12,527.7432]
[1770130091677,21.95504244,102.23,102.13,137.2084]
[1770130091870,83.95504244,102.23,102.15,137.1813]
[1770130092071,144.38,102.25,102.15,137.1813]
[1770130092072,21.95504244,102.25,102.15,137.1813]
[1770130092278,21.95504244,102.25,102.16,274.3299]
[1770130092971,21.95504244,102.25,102.15,527.7213]
[1770130093174,21.95504244,102.23,102.13,137.2087]
[1770130093374,8.8129,102.22,102.15,8.8189]
[1770130093569,21.95504244,102.29,102.2,137.1153]
[1770130093770,21.95504244,102.29,102.21,137.0963]
[1770130094171,21.95504244,102.29,102.19,527.6577]
[1770130094574,21.95504244,102.29,102.21,137.1026]
[1770130094986,21.95504244,102.29,102.2,137.1148]
[1770130095369,21.95504244,102.29,102.19,527.6577]
[1770130095568,21.9463612,102.28,102.18,137.1431]
[1770130095974,21.9463612,102.28,102.2,137.1156]
[1770130096174,21.9463612,102.28,102.19,137.1284]
[1770130096381,21.9463612,102.28,102.22,8.8128]
[1770130096876,92.75304455,102.31,102.24,8.8111]
[1770130097080,21.94734455,102.31,102.21,527.5826]
[1770130097277,21.94734455,102.29,102.21,390.48]
[1770130097482,28.5104919,102.28,102.2,8.8138]
[1770130098274,6.56314735,102.3,102.2,527.5737]
[1770130098677,8.8078,102.28,102.2,399.2738]
[1770130098876,158.98901255,102.27,102.16,137.1697]
[1770130099076,165.5644599,102.26,102.15,527.6315]
[1770130099277,8.812,102.23,102.14,137.1856]
[1770130099473,28.5270599,102.24,102.15,137.1823]
[1770130099780,37.3383599,102.24,102.16,8.818]
[1770130100482,21.97274488,102.23,102.15,137.1818]
[1770130100880,21.97274488,102.23,102.16,8.818]
[1770130101081,21.97274488,102.23,102.15,137.1773]
[1770130101477,206.14,102.25,102.15,137.1773]
[1770130101773,166.11274488,102.25,102.14,527.6351]
[1770130101975,8.8112,102.24,102.16,8.818]
[1770130102980,8.8121,102.23,102.16,8.818]
[1770130103172,8.8121,102.23,102.14,390.44]
[1770130103173,21.92919103,102.23,102.14,390.44]
[1770130103374,144.14,102.25,102.16,137.1687]
[1770130103576,144.14,102.25,102.14,527.6323]
[1770130103577,28.49233838,102.22,102.14,8.8196]
[1770130103878,21.92919103,102.21,102.12,361.46]
[1770130104084,30.74299103,102.21,102.12,361.46]
[1770130104680,30.74299103,102.21,102.13,8.8206]
[1770130105381,8.8146,102.2,102.12,361.46]
[1770130105583,21.92727326,102.19,102.09,137.2555]
[1770130105986,30.74277326,102.19,102.11,8.8216]
[1770130106185,30.74277326,102.19,102.09,137.2555]
[1770130106186,21.92727326,102.19,102.09,137.2555]
[1770130106890,21.93125105,102.17,102.08,527.7348]
[1770130107693,21.93125105,102.17,102.08,527.7371]
[1770130107993,172.60546377,102.2,102.1,137.2476]
[1770130108190,21.93125105,102.18,102.1,8.8227]
[1770130108391,28.50546377,102.18,102.1,8.8227]
[1770130108588,28.50546377,102.18,102.09,137.2629]
[1770130108889,28.50546377,102.18,102.1,137.2493]
[1770130109094,6.57421272,102.2,102.12,137.2238]
[1770130109291,21.9317638,102.19,102.1,137.2493]
[1770130109487,30.7473638,102.19,102.1,137.246]
[1770130109688,21.9317638,102.19,102.11,137.2355]
[1770130110090,165.8917638,102.22,102.14,137.1946]
[1770130110290,432.0338,102.27,102.14,137.1946]
[1770130110291,6.57421272,102.24,102.15,137.1814]
[1770130110491,21.9317638,102.25,102.15,137.1814]
[1770130110693,28.50709496,102.28,102.18,137.1426]
[1770130110893,21.93288224,102.28,102.21,137.1014]
[1770130111197,21.93288224,102.28,102.19,137.1298]
[1770130111397,21.93288224,102.28,102.2,137.11]
[1770130111796,21.93288224,102.28,102.22,8.8127]
[1770130112188,21.93288224,102.28,102.21,137.1029]
[1770130112392,165.87288224,102.31,102.21,137.1029]
[1770130112589,21.93288224,102.29,102.19,137.1298]
[1770130112792,21.93288224,102.29,102.18,137.1426]
[1770130112793,21.99506523,102.28,102.18,137.1426]
[1770130113092,21.99506523,102.28,102.19,137.1274]
[1770130113891,21.99506523,102.28,102.2,8.8145]
[1770130114694,30.80456523,102.26,102.18,8.8161]
[1770130115696,30.80456523,102.26,102.15,527.672]
[1770130115697,21.99602137,102.25,102.15,527.672]
[1770130116398,8.8121,102.23,102.16,8.8177]
[1770130117097,21.99032921,102.21,102.14,8.819]
[1770130117496,165.69032921,102.24,102.15,137.1827]
[1770130117701,21.99032921,102.23,102.13,137.21]
[1770130117899,30.80672921,102.18,102.08,137.2657]
[1770130118090,21.99032921,102.18,102.09,137.2635]
[1770130118602,21.99032921,102.17,102.09,8.8233]
[1770130119003,30.80772921,102.17,102.09,8.8233]
[1770130119199,30.80772921,102.17,102.1,8.8232]
[1770130119697,8.8181,102.16,102.07,527.7703]
[1770130119898,21.985474,102.2,102.12,137.2194]
[1770130120301,21.985474,102.2,102.12,8.8208]
[1770130120701,21.985474,102.2,102.1,137.2475]
[1770130120702,159.106774,102.2,102.1,137.2475]
[1770130120894,159.15021913,102.19,102.08,137.2694]
[1770130121100,159.15541913,102.18,102.08,137.2752]
[1770130121297,22.01151913,102.17,102.08,137.2752]
[1770130121704,22.01151913,102.17,102.07,527.8007]
[1770130121705,22.01151913,102.14,102.07,390.52]
[1770130121897,22.01151913,102.14,102.04,137.3304]
[1770130122096,159.21501913,102.14,102.04,137.3304]
[1770130122296,8.8211,102.13,102.05,8.8274]
[1770130123100,8.8211,102.13,102.03,137.335]
[1770130123101,8.8217,102.12,102.03,137.335]
[1770130123300,21.98768811,102.09,101.99,137.3882]
[1770130123496,21.98768811,102.09,102.0,137.3842]
[1770130123701,21.98768811,102.08,102.0,8.8311]
[1770130124006,165.66768811,102.11,102.01,137.3694]
[1770130124198,21.98768811,102.11,102.02,137.3542]
[1770130124502,21.98768811,102.11,102.02,527.9542]
[1770130124695,21.99958938,102.1,102.0,137.3849]
[1770130124901,21.99958938,102.1,102.01,137.3715]
[1770130125601,21.99958938,102.1,102.02,8.83]
[1770130125806,21.99958938,102.1,101.99,527.9896]
[1770130125997,21.99958938,102.09,102.01,137.3709]
[1770130126401,21.99958938,102.09,102.0,137.3846]
[1770130127009,21.99958938,102.09,101.99,528.0496]
[1770130127508,21.99958938,102.09,101.99,399.492]
[1770130127804,21.99480243,102.07,101.96,137.4284]
[1770130127997,21.99480243,102.07,101.96,8.8352]
[1770130127998,21.99480243,102.06,101.96,8.8352]
[1770130128308,21.99480243,102.03,101.92,137.4923]
[1770130128507,21.99480243,102.02,101.94,8.8365]
[1770130128703,143.66,102.03,101.95,137.4516]
[1770130129105,165.6584716,102.03,101.95,137.4516]
[1770130129303,165.6584716,102.03,101.96,8.835]
[1770130129902,21.9984716,102.03,101.96,8.835]
[1770130130310,21.9984716,102.03,101.91,137.5051]
[1770130130311,21.99901969,102.02,101.91,137.5051]
[1770130130704,21.99901969,102.02,101.92,137.4843]
[1770130130904,21.99901969,102.01,101.9,528.3492]
[1770130131309,21.99901969,102.0,101.9,528.3492]
[1770130131506,169.3160258,102.02,101.92,137.493]
[1770130131706,21.99901969,102.03,101.93,137.4792]
[1770130131903,21.99901969,102.03,101.95,8.8359]
[1770130132601,21.99901969,102.03,101.93,537.2164]
[1770130132808,21.99031675,101.99,101.91,137.5047]
[1770130133303,21.99031675,101.97,101.89,137.522]
[1770130133506,21.99031675,101.97,101.88,528.4951]
[1770130133704,28.58725059,101.96,101.89,8.8412]
[1770130133909,6.59693384,101.98,101.88,137.5466]
[1770130134221,28.58725059,101.98,101.89,137.533]
[1770130135215,21.9871515,101.97,101.88,137.5466]
[1770130135409,6.59693384,101.96,101.88,137.5466]
[1770130135713,21.9871515,101.95,101.85,137.5759]
[1770130136010,21.9871515,101.95,101.84,528.6493]
[1770130136011,28.58408534,101.94,101.84,528.6493]
[1770130136207,28.58408534,101.92,101.82,137.6202]
[1770130136409,21.9871515,101.91,101.81,137.6378]
[1770130136613,28.58408534,101.9,101.82,8.8468]
[1770130136812,21.99035136,101.89,101.79,137.6566]
[1770130137115,21.99035136,101.89,101.8,528.7521]
[1770130137313,21.99035136,101.89,101.82,8.8473]
[1770130137714,21.99035136,101.89,101.82,137.6277]
[1770130138014,28.5872852,101.92,101.83,391.14]
[1770130138217,37.4267852,101.92,101.83,528.752]
[1770130138716,99.4267852,101.92,101.83,528.752]
[1770130139217,37.4267852,101.92,101.83,528.752]
[1770130139418,21.98394436,101.91,101.83,391.14]
[1770130139710,30.82384436,101.91,101.82,391.26]
[1770130140014,30.82384436,101.91,101.83,137.6142]
[1770130140015,21.98394436,101.91,101.83,137.6142]
[1770130140313,21.98394436,101.92,101.83,137.6138]
[1770130140514,21.98394436,101.91,101.82,400.1068]
[1770130140813,37.41238247,101.9,101.82,8.8468]
[1770130141111,37.41238247,101.9,101.81,528.9411]
[1770130141112,21.97464863,101.89,101.81,391.3]
[1770130141305,21.97464863,101.92,101.84,137.6011]
[1770130141509,21.97464863,101.92,101.84,400.1655]
[1770130142121,30.81364863,101.92,101.84,391.32]
[1770130142313,28.57158247,101.9,101.8,391.36]
[1770130142512,21.97464863,101.87,101.77,137.6847]
[1770130142708,21.97464863,101.87,101.8,8.849]
[1770130143009,28.56777863,101.9,101.8,137.6548]
[1770130143215,30.81244479,101.89,101.8,8.8486]
[1770130143426,21.97084479,101.88,101.8,8.8486]
[1770130143614,6.59693384,101.9,101.81,137.6403]
[1770130143919,6.59693384,101.9,101.8,137.6523]
[1770130143920,28.56777863,101.9,101.82,391.4]
[1770130144309,28.56777863,101.9,101.82,400.2471]
[1770130144610,165.86184495,101.93,101.83,137.6145]
[1770130144813,30.80094495,101.92,101.83,8.8465]
[1770130145008,21.96184495,101.92,101.84,137.6]
[1770130145211,21.96184495,101.94,101.84,137.6]
[1770130145408,21.96184495,101.92,101.82,529.0264]
[1770130145617,21.96184495,101.92,101.83,137.6136]
[1770130145818,21.96184495,101.92,101.84,391.48]
[1770130146012,28.55877879,101.95,101.85,137.5873]
[1770130146207,21.96184495,101.94,101.85,529.0648]
[1770130146416,21.96184495,101.94,101.85,529.1048]
[1770130146614,28.54080078,101.97,101.87,137.5564]
[1770130146821,21.94386694,101.96,101.88,137.5466]
[1770130147011,21.94386694,101.96,101.87,391.52]
[1770130147012,21.94386694,101.95,101.87,391.52]
[1770130147212,28.54080078,101.95,101.87,391.52]
[1770130147410,28.54080078,101.95,101.86,391.52]
[1770130147616,21.94386694,101.93,101.86,391.52]
[1770130148012,30.78216694,101.93,101.86,391.52]
[1770130148218,159.43916694,101.92,101.81,137.6304]
[1770130148543,28.54080078,101.91,101.82,137.623]
[1770130148723,28.54080078,101.91,101.84,8.8457]
[1770130149119,28.55892893,101.93,101.85,8.8448]
[1770130149313,28.55892893,101.93,101.84,137.6006]
[1770130149314,21.96199509,101.93,101.84,529.1406]
[1770130149518,21.96199509,101.93,101.84,391.54]
[1770130149519,21.96199509,101.92,101.84,391.54]
[1770130149717,30.80089509,101.92,101.84,400.3857]
[1770130150022,172.29892893,101.95,101.85,137.587]
[1770130150222,21.96199509,101.95,101.87,137.5597]
[1770130150410,21.96199509,101.95,101.89,8.8413]
[1770130150816,21.96199509,101.95,101.87,529.1197]
[1770130151014,21.96199509,101.95,101.87,400.4024]
[1770130151413,8.838,101.93,101.82,137.6177]
[1770130151622,22.01630915,101.93,101.84,137.5992]
[1770130152024,22.01630915,101.93,101.83,529.1924]
[1770130152318,22.01630915,101.92,101.83,391.58]
[1770130152724,30.87516133,101.91,101.82,137.6177]
[1770130152923,22.03546133,101.91,101.82,391.58]
[1770130153423,22.03546133,101.91,101.83,391.58]
[1770130153624,22.03546133,101.91,101.83,529.1937]
[1770130153824,8.8396,101.92,101.84,8.8451]
[1770130154023,159.51886133,101.93,101.84,8.8451]
[1770130154218,22.03546133,101.93,101.83,137.6136]
[1770130154418,159.51586133,101.93,101.84,391.58]
[1770130154628,22.22624089,101.91,101.84,391.58]
[1770130155919,6.59693384,101.93,101.84,529.1759]
[1770130156118,28.82317473,102.0,101.89,137.5314]
[1770130156325,22.22624089,101.98,101.9,391.62]
[1770130157119,28.82317473,101.98,101.9,391.62]
[1770130157523,28.82317473,101.98,101.91,8.8395]
[1770130157729,8.8333,101.99,101.91,8.8395]
[1770130157928,8.8333,101.99,101.9,529.1389]
[1770130158124,28.8050392,101.99,101.9,391.62]
[1770130158327,22.20810536,101.99,101.9,529.1365]
[1770130158722,31.04110536,101.99,101.91,8.8396]
[1770130159027,31.04110536,101.99,101.9,529.1393]
[1770130159223,22.20810536,101.99,101.9,529.1393]
[1770130159426,6.59693384,102.01,101.92,137.491]
[1770130159624,6.59693384,102.01,101.92,529.091]
[1770130159821,22.21115796,102.0,101.92,391.6]
[1770130160025,22.21115796,101.98,101.92,391.6]
[1770130160420,22.21115796,101.98,101.92,400.4386]
[1770130160831,22.21115796,101.98,101.92,391.6]
[1770130161123,22.25448927,101.94,101.85,137.5797]
[1770130161920,8.8372,101.94,101.86,8.844]
[1770130162126,22.25448927,101.92,101.84,391.58]
[1770130162326,22.25448927,101.92,101.84,137.5996]
[1770130162525,22.25448927,101.92,101.85,8.8448]
[1770130163224,28.83956071,101.91,101.84,8.8457]
[1770130163930,22.24262687,101.91,101.85,8.8446]
[1770130164128,22.24262687,101.91,101.83,529.1735]
[1770130164129,22.24262687,101.91,101.84,137.5978]